bitfinex/quotes_SOLUSD_20220307
["timestamp","ask_amount","ask_price","bid_price","bid_amount"]
[1646660460500,6.0,85.268,85.207,0.25]
[1646660460700,6.0,85.268,85.208,5.865]
[1646660460901,6.0,85.268,85.209,0.25]
[1646660461118,71.78167268,85.297,85.21,5.865]
[1646660461308,76.3848542,85.392,85.21,5.865]
[1646660461309,118.6,85.308,85.211,6.25]
[1646660461505,100.0,85.32,85.212,6.14194969]
[1646660461704,100.0,85.32,85.22,190.06]
[1646660461902,100.0,85.32,85.222,118.6]
[1646660462101,90.9948,85.32,85.25,175.98]
[1646660462303,1.59267608,85.399,85.252,118.6]
[1646660462501,1.59267608,85.399,85.261,118.6]
[1646660462702,1.59267608,85.408,85.271,118.6]
[1646660462901,1.59267608,85.407,85.281,118.6]
[1646660463102,24.8222,85.446,85.28,190.06]
[1646660463103,42.40872291,85.406,85.291,118.6]
[1646660463300,42.40872291,85.406,85.301,118.6]
[1646660463500,42.40872291,85.406,85.305,118.6]
[1646660463703,42.40872291,85.406,85.309,118.6]
[1646660463902,1.59267608,85.403,85.321,118.6]
[1646660464105,1.59267608,85.404,85.323,118.6]
[1646660464304,42.40872291,85.406,85.324,6.25]
[1646660464702,42.40872291,85.406,85.33,17.5723]
[1646660464903,42.40872291,85.406,85.331,6.25]
[1646660465304,1.59267608,85.432,85.333,59.43]
[1646660465502,1.59267608,85.445,85.335,0.56520666]
[1646660465703,19.16897608,85.43,85.335,0.56520666]
[1646660466304,1.59267608,85.424,85.335,0.56520666]
[1646660466504,1.59267608,85.412,85.335,0.56520666]
[1646660466705,42.47788106,85.411,85.335,0.56520666]
[1646660467104,42.47788106,85.411,85.332,118.6]
[1646660467404,42.47788106,85.411,85.336,2.83613526]
[1646660467603,42.47788106,85.411,85.351,118.6]
[1646660467803,1.59267608,85.44,85.353,118.6]
[1646660468006,7.59267608,85.439,85.355,118.6]
[1646660468204,7.59267608,85.439,85.35,14.08]
[1646660468205,1.59267608,85.449,85.371,118.6]
[1646660468405,1.59267608,85.449,85.38,14.08]
[1646660468605,1.59267608,85.457,85.38,14.08]
[1646660468804,1.59267608,85.463,85.381,6.25]
[1646660469005,40.19119976,85.456,85.381,6.25]
[1646660469406,40.19119976,85.456,85.38,14.08]
[1646660469611,40.19119976,85.456,85.35,2.83613526]
[1646660469805,6.0,85.455,85.35,2.83613526]
[1646660470007,100.0,85.445,85.326,22.5524]
[1646660470207,17.5791,85.42,85.326,22.5524]
[1646660470404,36.19039534,85.443,85.325,200.4057]
[1646660470607,36.19039534,85.443,85.33,14.08]
[1646660470806,6.0,85.442,85.33,14.08]
[1646660471008,2.83613526,85.442,85.331,121.43613526]
[1646660471205,36.19039534,85.443,85.331,121.43613526]
[1646660471408,36.19039534,85.443,85.333,118.6]
[1646660471611,36.19039534,85.443,85.335,118.6]
[1646660471909,36.19039534,85.443,85.337,118.6]
[1646660472107,36.19039534,85.443,85.351,118.6]
[1646660472308,36.19039534,85.443,85.352,6.25]
[1646660472506,36.19039534,85.443,85.352,6.0]
[1646660472707,2.83613526,85.442,85.352,6.0]
[1646660472910,2.83613526,85.442,85.35,14.08]
[1646660473107,2.83613526,85.442,85.325,2.83613526]
[1646660473309,10.52476396,85.441,85.26,175.98]
[1646660473509,10.52476396,85.441,85.29,14.08]
[1646660473510,14.08,85.44,85.29,14.08]
[1646660473811,17.5863,85.4,85.29,14.08]
[1646660474011,35.53889336,85.399,85.277,25.97453526]
[1646660474212,35.7485761,85.399,85.279,6.0]
[1646660474413,38.58471136,85.399,85.281,25.58890975]
[1646660474711,2.83613526,85.398,85.282,6.25]
[1646660475014,0.20968274,85.389,85.282,6.0]
[1646660475216,0.45968274,85.389,85.269,25.58890975]
[1646660475413,0.40581919,85.387,85.25,14.08]
[1646660475615,44.93876304,85.386,85.251,25.58890975]
[1646660475814,6.25,85.385,85.252,118.6]
[1646660476013,6.25,85.385,85.263,100.0]
[1646660476214,17.5883,85.38,85.26,14.08]
[1646660476515,1.59267608,85.442,85.301,189.76]
[1646660476714,1.59267608,85.467,85.311,118.6]
[1646660476916,1.59267608,85.477,85.321,118.6]
[1646660477114,1.59267608,85.477,85.331,118.6]
[1646660477314,36.17301024,85.476,85.341,118.6]
[1646660477516,36.17301024,85.476,85.351,118.6]
[1646660477715,36.17301024,85.476,85.35,190.06]
[1646660477716,36.17301024,85.476,85.355,118.6]
[1646660477917,36.17301024,85.476,85.37,14.08]
[1646660478215,36.17301024,85.476,85.38,14.08]
[1646660478415,36.17301024,85.476,85.397,0.47444633]
[1646660478614,36.17301024,85.476,85.4,14.08]
[1646660478816,120.0,85.475,85.39,14.08]
[1646660479017,120.0,85.475,85.372,0.47444633]
[1646660479219,5.48748023,85.473,85.372,0.47444633]
[1646660479422,31.6497,85.47,85.362,6.25]
[1646660479616,6.0,85.469,85.362,0.25]
[1646660479817,0.25,85.468,85.362,0.25]
[1646660480018,0.25,85.468,85.33,14.08]
[1646660480217,12.48474194,85.468,85.335,28.99046183]
[1646660480418,8.83613526,85.467,85.336,6.0]
[1646660480620,0.25,85.466,85.34,14.08]
[1646660480820,3.08613526,85.466,85.34,14.08]
[1646660481019,3.08613526,85.466,85.341,28.99046183]
[1646660481225,47.1935,85.472,85.341,55.5041162]
[1646660481421,47.1935,85.472,85.342,123.48985823]
[1646660481621,47.1935,85.472,85.4,0.03]
[1646660482221,2.83613526,85.471,85.371,6.25]
[1646660482520,7.6040534,85.471,85.371,0.25]
[1646660482921,14.08,85.46,85.371,0.25]
[1646660483124,112.97941061,85.459,85.34,14.08]
[1646660483320,6.25,85.458,85.34,14.08]
[1646660483523,6.25,85.458,85.341,118.6]
[1646660483721,6.25,85.458,85.343,118.6]
[1646660483921,112.97941061,85.459,85.351,118.6]
[1646660484122,112.97941061,85.459,85.353,118.6]
[1646660484325,112.97941061,85.459,85.355,118.6]
[1646660484529,112.97941061,85.459,85.371,118.6]
[1646660484722,112.97941061,85.459,85.372,6.25]
[1646660485324,112.97941061,85.459,85.373,6.0]
[1646660485526,112.97941061,85.459,85.374,0.25]
[1646660485725,112.97941061,85.459,85.372,0.25]
[1646660487626,112.97941061,85.459,85.373,2.83613526]
[1646660487826,112.97941061,85.459,85.374,6.25]
[1646660488026,112.97941061,85.459,85.375,118.6]
[1646660488226,1.59267608,85.494,85.381,118.6]
[1646660488526,23.504,85.499,85.385,118.6]
[1646660488731,6.0,85.498,85.401,118.6]
[1646660488925,6.0,85.498,85.403,118.6]
[1646660489125,6.0,85.498,85.405,118.6]
[1646660489325,36.84163279,85.497,85.407,118.6]
[1646660489528,6.0,85.496,85.408,6.25]
[1646660490128,17.5631,85.49,85.408,0.25]
[1646660490328,1.59267608,85.477,85.408,0.25]
[1646660490628,40.34330833,85.476,85.408,0.25]
[1646660490827,40.34330833,85.476,85.398,118.6]
[1646660491028,40.34330833,85.476,85.4,118.6]
[1646660491229,40.34330833,85.476,85.402,118.6]
[1646660491429,40.34330833,85.476,85.404,118.6]
[1646660491630,40.34330833,85.476,85.405,6.25]
[1646660491829,40.34330833,85.476,85.406,0.25]
[1646660492029,2.83613526,85.475,85.39,2.83613526]
[1646660492231,17.5668,85.47,85.391,6.0]
[1646660492630,2.83613526,85.469,85.391,6.0]
[1646660492830,2.83613526,85.469,85.376,6.0]
[1646660493031,6.0,85.468,85.359,31.82659709]
[1646660493331,17.5688,85.46,85.363,6.0]
[1646660493531,0.20593571,85.458,85.363,6.0]
[1646660493731,1.79861179,85.458,85.364,118.6]
[1646660493931,0.20593571,85.458,85.366,118.6]
[1646660494131,6.0,85.458,85.368,118.6]
[1646660494331,6.0,85.458,85.37,118.6]
[1646660494533,6.0,85.458,85.372,118.6]
[1646660494732,37.08386352,85.461,85.374,118.6]
[1646660494930,37.08386352,85.461,85.376,118.6]
[1646660495130,37.08386352,85.461,85.377,6.25]
[1646660495531,37.08386352,85.461,85.378,118.6]
[1646660495735,37.08386352,85.461,85.38,118.6]
[1646660495932,37.08386352,85.461,85.391,118.6]
[1646660496236,37.08386352,85.461,85.393,118.6]
[1646660496432,37.08386352,85.461,85.395,118.6]
[1646660496633,37.08386352,85.461,85.396,6.25]
[1646660497235,37.08386352,85.461,85.396,0.25]
[1646660497633,37.08386352,85.461,85.383,0.25]
[1646660498034,37.08386352,85.461,85.383,118.85]
[1646660498235,37.08386352,85.461,85.384,2.83613526]
[1646660498438,37.08386352,85.461,85.385,0.25]
[1646660498841,37.08386352,85.461,85.386,121.43613526]
[1646660499137,37.08386352,85.461,85.388,118.6]
[1646660499335,37.08386352,85.461,85.39,118.6]
[1646660499536,37.08386352,85.461,85.392,118.6]
[1646660499739,37.08386352,85.461,85.394,118.6]
[1646660499936,37.08386352,85.461,85.396,118.6]
[1646660500136,37.08386352,85.461,85.398,118.6]
[1646660500337,37.08386352,85.461,85.399,0.25]
[1646660500736,1.59267608,85.478,85.399,0.25]
[1646660500937,1.59267608,85.482,85.4,126.17186788]
[1646660501160,1.59267608,85.5,85.402,0.1117251]
[1646660501338,1.59267608,85.504,85.402,118.7117251]
[1646660501538,1.59267608,85.507,85.405,0.1117251]
[1646660501738,38.72807308,85.506,85.411,118.6]
[1646660502038,38.72807308,85.506,85.419,0.1451671]
[1646660502537,1.59267608,85.501,85.419,0.1451671]
[1646660502737,8.83613526,85.505,85.402,100.0]
[1646660502738,1.59267608,85.497,85.403,6.0]
[1646660502939,1.59267608,85.496,85.403,6.0]
[1646660503139,36.54347975,85.49,85.401,6.0]
[1646660503641,36.54347975,85.49,85.402,118.6]
[1646660503845,36.54347975,85.49,85.404,118.6]
[1646660504045,36.54347975,85.49,85.406,118.6]
[1646660504245,36.54347975,85.49,85.411,118.6]
[1646660504446,36.54347975,85.49,85.413,118.6]
[1646660504647,36.54347975,85.49,85.415,118.6]
[1646660504951,36.54347975,85.49,85.414,6.25]
[1646660504952,36.54347975,85.49,85.421,118.6]
[1646660505147,36.54347975,85.49,85.423,0.1987587]
[1646660505346,36.54347975,85.49,85.442,0.1987587]
[1646660505748,36.54347975,85.49,85.41,14.08]
[1646660506550,1.59267608,85.487,85.412,118.6]
[1646660506748,1.59267608,85.487,85.414,0.1987587]
[1646660507149,1.59267608,85.488,85.413,124.6]
[1646660507351,1.59267608,85.488,85.414,0.25]
[1646660507552,1.59267608,85.488,85.416,0.51477735]
[1646660507752,0.63659622,85.599,85.416,0.51477735]
[1646660507753,7.608e-05,85.524,85.431,118.6]
[1646660507950,3.20292809,85.558,85.436,0.51477735]
[1646660508149,3.20292809,85.559,85.452,0.51477735]
[1646660508350,3.20292809,85.56,85.456,118.6]
[1646660508552,46.19595459,85.558,85.459,0.51477735]
[1646660508768,6.38883642,85.557,85.461,0.51477735]
[1646660508972,6.38883642,85.557,85.462,118.6]
[1646660509167,6.0,85.556,85.464,118.6]
[1646660509371,17.5485,85.55,85.471,118.6]
[1646660509569,12.38883642,85.549,85.472,0.25]
[1646660509866,6.38883642,85.548,85.472,0.25]
[1646660510069,6.0,85.547,85.472,0.25]
[1646660510271,6.0,85.547,85.473,118.6]
[1646660510468,49.39888268,85.558,85.481,118.6]
[1646660510770,46.19595459,85.558,85.484,0.51477735]
[1646660510968,46.19595459,85.558,85.485,118.6]
[1646660511171,46.19595459,85.558,85.487,118.6]
[1646660511370,46.19595459,85.558,85.488,6.25]
[1646660511569,46.19595459,85.558,85.489,118.6]
[1646660511778,46.19595459,85.558,85.49,0.25]
[1646660512170,46.19595459,85.558,85.472,2.36786631]
[1646660512370,46.19595459,85.558,85.472,100.0]
[1646660512573,46.19595459,85.558,85.45,14.08]
[1646660512574,17.5524,85.55,85.451,118.6]
[1646660512971,46.19595459,85.558,85.451,118.6]
[1646660513174,6.6378368,85.557,85.453,118.6]
[1646660513373,6.3878368,85.557,85.453,118.6]
[1646660513572,46.19595459,85.558,85.454,2.83613526]
[1646660513772,46.19595459,85.558,85.461,118.6]
[1646660513973,46.19595459,85.558,85.471,118.6]
[1646660514173,46.19595459,85.558,85.481,118.6]
[1646660514473,46.19595459,85.558,85.482,0.25]
[1646660514673,46.19595459,85.558,85.474,118.6]
[1646660514873,46.19595459,85.558,85.472,0.25]
[1646660514874,46.19595459,85.558,85.481,118.6]
[1646660515176,46.19595459,85.558,85.482,6.0]
[1646660515387,0.25,85.557,85.475,6.0]
[1646660515778,46.19595459,85.558,85.481,118.6]
[1646660515976,46.19595459,85.558,85.483,118.6]
[1646660516174,46.19595459,85.558,85.485,118.6]
[1646660516374,46.19595459,85.558,85.487,118.6]
[1646660516577,46.19595459,85.558,85.489,118.6]
[1646660516776,46.19595459,85.558,85.5,17.5406]
[1646660516976,27.45392809,85.581,85.501,124.85]
[1646660517182,3.20292809,85.597,85.501,118.6]
[1646660517376,3.20292809,85.603,85.503,118.6]
[1646660517576,3.20292809,85.613,85.505,118.6]
[1646660517778,3.20292809,85.613,85.504,6.25]
[1646660517779,3.20292809,85.613,85.508,0.51477735]
[1646660517977,0.08703418,85.589,85.521,118.6]
[1646660518181,0.08703418,85.589,85.541,118.6]
[1646660518378,0.08703418,85.589,85.543,118.6]
[1646660518576,0.08703418,85.589,85.545,118.6]
[1646660518778,0.08703418,85.589,85.547,118.6]
[1646660519076,0.08703418,85.589,85.542,0.51477735]
[1646660520281,0.08703418,85.589,85.55,17.5299]
[1646660520483,0.08703418,85.589,85.55,24.3999]
[1646660520679,0.08703418,85.589,85.531,29.42555413]
[1646660520881,0.08703418,85.589,85.521,118.6]
[1646660521180,0.08703418,85.589,85.511,118.6]
[1646660521379,0.08703418,85.589,85.512,124.6]
[1646660522080,0.08703418,85.589,85.481,27.87513028]
[1646660522280,2.83613526,85.588,85.416,4.31273206]
[1646660522480,124.85,85.587,85.455,100.0]
[1646660522683,39.71415472,85.579,85.45,14.08]
[1646660522883,6.25,85.578,85.45,14.08]
[1646660523081,6.25,85.578,85.462,118.6]
[1646660523280,9.08613526,85.578,85.464,118.6]
[1646660523479,9.08613526,85.578,85.466,118.6]
[1646660523480,0.29572316,85.577,85.466,118.6]
[1646660523679,0.29572316,85.577,85.468,118.6]
[1646660523880,6.25,85.578,85.469,6.0]
[1646660524080,64.26335472,85.579,85.464,118.6]
[1646660524281,6.0,85.578,85.47,118.6]
[1646660524480,6.0,85.578,85.472,218.6]
[1646660524683,6.0,85.578,85.474,118.6]
[1646660524882,6.0,85.578,85.477,0.11355753]
[1646660525082,6.0,85.578,85.478,5.846]
[1646660525283,3.08613526,85.577,85.479,0.25]
[1646660525485,6.0,85.576,85.479,0.25]
[1646660525683,118.85,85.575,85.478,5.846]
[1646660525883,124.29111555,85.573,85.478,5.846]
[1646660526084,118.6,85.569,85.478,5.846]
[1646660526284,40.68798188,85.566,85.456,5.846]
[1646660526487,0.15903694,85.564,85.457,6.0]
[1646660526683,118.75903694,85.564,85.456,5.846]
[1646660526883,118.75903694,85.564,85.455,100.0]
[1646660526884,5.37992454,85.562,85.455,100.0]
[1646660527084,6.25,85.561,85.436,118.6]
[1646660527284,17.5539,85.54,85.438,118.6]
[1646660527486,47.66900445,85.538,85.44,118.6]
[1646660527684,6.25,85.537,85.442,118.6]
[1646660527885,6.25,85.537,85.443,6.0]
[1646660528088,6.25,85.537,85.437,6.0]
[1646660528387,2.83613526,85.536,85.422,218.6]
[1646660528588,17.5561,85.53,85.423,5.849]
[1646660528787,6.25,85.529,85.423,5.849]
[1646660528987,124.46787676,85.528,85.423,5.849]
[1646660529187,9.08613526,85.529,85.411,5.849]
[1646660529486,26.73073526,85.528,85.411,5.849]
[1646660529687,17.5581,85.52,85.411,5.849]
[1646660529887,38.61553097,85.518,85.411,5.849]
[1646660530088,6.0,85.517,85.411,5.849]
[1646660530287,6.0,85.517,85.412,0.25]
[1646660530489,6.0,85.517,85.404,100.0]
[1646660530490,2.83613526,85.516,85.413,5.849]
[1646660530690,6.0,85.515,85.413,5.849]
[1646660530986,6.25,85.515,85.413,5.849]
[1646660531387,6.0,85.514,85.415,118.6]
[1646660531590,0.25,85.513,85.407,5.849]
[1646660531788,0.25,85.515,85.407,5.849]
[1646660531989,17.5602,85.51,85.407,5.849]
[1646660532190,118.6,85.508,85.407,5.849]
[1646660532391,118.6,85.503,85.407,5.849]
[1646660532592,118.6,85.499,85.407,5.849]
[1646660532792,6.25,85.498,85.407,5.849]
[1646660532995,6.25,85.498,85.382,5.851]
[1646660533194,47.6305,85.497,85.384,118.6]
[1646660533392,6.25,85.496,85.385,6.0]
[1646660533592,6.25,85.496,85.386,5.852]
[1646660534395,48.12968597,85.489,85.384,5.851]
[1646660534596,6.25,85.488,85.387,118.6]
[1646660534918,6.25,85.488,85.388,5.852]
[1646660535096,6.25,85.488,85.389,118.85]
[1646660535296,6.25,85.488,85.389,121.68613526]
[1646660535698,6.25,85.488,85.39,2.83613526]
[1646660535896,6.25,85.488,85.391,0.25]
[1646660536297,6.25,85.488,85.392,2.83613526]
[1646660536500,6.25,85.488,85.393,0.25]
[1646660536897,17.5657,85.48,85.393,0.25]
[1646660537097,6.0,85.479,85.393,0.25]
[1646660537300,0.25,85.488,85.394,2.83613526]
[1646660537506,0.25,85.488,85.395,0.25]
[1646660537897,17.5653,85.48,85.396,2.83613526]
[1646660538098,0.25,85.479,85.397,0.25]
[1646660538299,6.25,85.479,85.388,5.852]
[1646660538498,0.25,85.479,85.388,5.852]
[1646660538705,6.25,85.479,85.388,5.852]
[1646660539102,17.5672,85.47,85.388,5.852]
[1646660539302,39.5861049,85.469,85.388,5.852]
[1646660539701,39.5861049,85.469,85.389,0.25]
[1646660540303,39.5861049,85.469,85.39,118.6]
[1646660540503,39.5861049,85.469,85.391,6.25]
[1646660540703,39.5861049,85.469,85.392,0.25]
[1646660540907,39.5861049,85.469,85.393,0.25665509]
[1646660541306,14.08,85.52,85.394,48.92452981]
[1646660541508,79.3564,85.542,85.397,0.34096717]
[1646660541706,79.3564,85.542,85.421,118.6]
[1646660541907,79.3564,85.542,85.424,0.3629518]
[1646660542107,79.3564,85.542,85.426,0.56520666]
[1646660542308,37.96850897,85.541,85.453,118.6]
[1646660542523,37.96850897,85.541,85.456,0.56520666]
[1646660542725,37.96850897,85.541,85.454,6.0]
[1646660543123,17.5522,85.54,85.428,6.0]
[1646660543626,121.43613526,85.539,85.428,6.0]
[1646660543823,118.6,85.537,85.429,0.25]
[1646660544025,0.25,85.536,85.429,0.25]
[1646660544324,17.5567,85.52,85.429,0.25]
[1646660544525,17.5567,85.52,85.414,48.92452981]
[1646660544526,44.92648767,85.519,85.423,6.0]
[1646660544724,6.25,85.518,85.415,6.0]
[1646660545131,44.92648767,85.519,85.416,118.6]
[1646660545325,44.92648767,85.519,85.431,118.6]
[1646660545525,44.92648767,85.519,85.432,6.0]
[1646660545725,44.92648767,85.519,85.433,0.25]
[1646660546227,6.0,85.518,85.417,107.57186788]
[1646660546425,17.5582,85.51,85.417,100.0]
[1646660546626,6.0,85.509,85.417,100.0]
[1646660547026,0.25,85.508,85.417,100.0]
[1646660547226,0.25,85.508,85.403,23.05709169]
[1646660547426,17.5642,85.49,85.403,23.05709169]
[1646660547628,44.02368387,85.489,85.405,118.6]
[1646660547827,2.83613526,85.517,85.404,6.0]
[1646660547828,2.83613526,85.534,85.421,118.6]
[1646660548029,3.20292809,85.596,85.431,118.6]
[1646660548226,3.20292809,85.596,85.435,118.6]
[1646660548427,5.20903796,85.588,85.451,118.6]
[1646660548628,3.20292809,85.583,85.452,125.13046864]
[1646660548830,118.6,85.581,85.452,125.13046864]
[1646660549026,23.9277101,85.58,85.453,2.36786631]
[1646660549227,6.0,85.579,85.455,118.6]
[1646660549433,6.38348394,85.578,85.456,6.0]
[1646660549726,121.80292809,85.576,85.454,6.0]
[1646660549930,4.34538094,85.573,85.454,6.0]
[1646660550131,118.6,85.571,85.454,6.0]
[1646660550331,12.63348394,85.57,85.454,25.21509169]
[1646660550532,48.55984379,85.569,85.455,2.83613526]
[1646660550732,12.63348394,85.568,85.456,0.25]
[1646660550932,6.38348394,85.567,85.456,25.46509169]
[1646660551135,34.91811211,85.549,85.457,28.05122695]
[1646660551337,6.0,85.548,85.458,0.25]
[1646660551534,6.0,85.548,85.458,34.30122695]
[1646660551834,34.91811211,85.549,85.46,14.08]
[1646660552034,34.91811211,85.549,85.461,6.25]
[1646660552233,34.91811211,85.549,85.48,17.5436]
[1646660552436,34.91811211,85.549,85.481,0.25]
[1646660553436,23.0726,85.565,85.481,118.85]
[1646660553637,23.0726,85.565,85.482,2.83613526]
[1646660553839,23.0726,85.565,85.483,118.85]
[1646660554237,23.0726,85.565,85.485,118.6]
[1646660554438,39.63099095,85.564,85.491,118.6]
[1646660554637,39.63099095,85.564,85.49,17.5421]
[1646660554638,39.63099095,85.564,85.493,118.6]
[1646660554837,39.63099095,85.564,85.495,118.6]
[1646660555038,39.63099095,85.564,85.497,118.6]
[1646660555337,39.63099095,85.564,85.501,118.6]
[1646660555538,39.63099095,85.564,85.502,0.25]
[1646660556138,38.13099095,85.564,85.502,0.25]
[1646660557238,38.13099095,85.564,85.502,6.25]
[1646660557438,23.0726,85.565,85.503,118.6]
[1646660557637,23.0726,85.565,85.505,118.7560094]
[1646660557838,24.8383,85.579,85.507,118.84602735]
[1646660558041,24.8383,85.579,85.511,118.6]
[1646660558238,47.6124,85.608,85.515,118.6]
[1646660558438,47.6124,85.608,85.52,14.08]
[1646660558439,41.27481568,85.599,85.52,14.08]
[1646660558643,41.27481568,85.599,85.522,0.24602735]
[1646660559241,41.27481568,85.599,85.524,0.24602735]
[1646660559442,41.27481568,85.599,85.525,118.6]
[1646660559642,41.27481568,85.599,85.532,100.0]
[1646660559841,41.27481568,85.599,85.533,6.25]
[1646660560041,41.27481568,85.599,85.533,0.25]
[1646660560842,17.5403,85.59,85.509,118.6]
[1646660561043,17.5403,85.59,85.511,118.6]
[1646660561244,41.27481568,85.599,85.512,6.0]
[1646660561843,17.54,85.59,85.512,6.0]
[1646660562242,41.27481568,85.599,85.513,121.68613526]
[1646660562444,41.27481568,85.599,85.515,118.6]
[1646660562644,41.27481568,85.599,85.517,118.6]
[1646660562844,41.27481568,85.599,85.52,17.5364]
[1646660563045,41.27481568,85.599,85.521,0.25]
[1646660563546,41.27481568,85.599,85.517,6.0]
[1646660564044,17.5402,85.59,85.517,6.0]
[1646660564246,17.5402,85.59,85.502,6.0]
[1646660564645,17.5402,85.59,85.502,31.21509169]
[1646660565044,24.3373,85.598,85.502,31.21509169]
[1646660565244,38.08221444,85.579,85.503,0.25]
[1646660565846,38.08221444,85.579,85.503,118.85]
[1646660566049,38.08221444,85.579,85.511,118.6]
[1646660566249,38.08221444,85.579,85.513,118.6]
[1646660566448,24.3373,85.598,85.515,118.6]
[1646660566648,24.3373,85.598,85.514,6.25]
[1646660566649,24.3373,85.598,85.517,118.6]
[1646660566851,24.3373,85.598,85.519,118.6]
[1646660567049,0.63659622,85.599,85.521,118.8177741]
[1646660567249,0.63659622,85.599,85.531,118.6]
[1646660567451,0.63659622,85.599,85.533,118.89931613]
[1646660567650,0.63659622,85.599,85.535,118.89931613]
[1646660567853,0.63659622,85.599,85.538,0.29931613]
[1646660568052,0.63659622,85.599,85.541,118.6]
[1646660568250,0.63659622,85.599,85.543,118.92492547]
[1646660568450,0.63659622,85.599,85.551,118.6]
[1646660568674,0.63659622,85.599,85.554,0.32492547]
[1646660568851,0.63659622,85.599,85.554,6.57492547]
[1646660569056,0.63659622,85.599,85.555,2.83613526]
[1646660569257,0.63659622,85.599,85.556,6.0]
[1646660569656,0.63659622,85.599,85.544,0.07248497]
[1646660569854,47.95624624,85.588,85.544,0.07248497]
[1646660571957,47.95624624,85.588,85.512,0.25]
[1646660572756,47.95624624,85.588,85.554,0.03]
[1646660575161,47.95624624,85.588,85.555,0.07248497]
[1646660575360,0.08703418,85.589,85.555,0.07248497]
[1646660577683,0.08703418,85.589,85.56,17.531]
[1646660577883,0.08703418,85.589,85.561,0.25]
[1646660578286,0.08703418,85.589,85.561,0.07248497]
[1646660579896,3.20292809,85.656,85.571,118.6]
[1646660580090,2.70292809,85.665,85.573,118.6]
[1646660580287,2.70292809,85.665,85.575,118.6]
[1646660580489,6.37387159,85.679,85.59,14.08]
[1646660580688,4.84185379,85.71,85.601,189.76]
[1646660580888,4.84185379,85.71,85.6,14.08]
[1646660580889,4.84185379,85.71,85.631,118.6]
[1646660581089,6.37123712,85.704,85.632,0.25]
[1646660581489,46.9263218,85.703,85.632,0.25]
[1646660581688,6.37123712,85.702,85.632,0.25]
[1646660582089,6.37123712,85.702,85.633,118.6]
[1646660582289,6.37123712,85.702,85.64,17.5137]
[1646660582493,6.37123712,85.704,85.641,118.85]
[1646660583290,6.37123712,85.704,85.643,118.6]
[1646660583489,6.37123712,85.704,85.644,0.25]
[1646660583692,6.37123712,85.704,85.645,118.6]
[1646660583890,24.5399,85.727,85.647,118.6]
[1646660584093,24.5399,85.727,85.651,118.6]
[1646660584290,47.3121,85.763,85.652,6.25]
[1646660584491,37.22685417,85.718,85.653,118.6]
[1646660584692,37.22685417,85.718,85.654,6.25]
[1646660585493,37.22685417,85.718,85.654,0.25]
[1646660585794,23.6948,85.762,85.653,118.85]
[1646660585993,6.0,85.761,85.661,118.6]
[1646660586194,6.0,85.761,85.663,118.6]
[1646660586395,23.6948,85.762,85.665,118.6]
[1646660586593,38.91760513,85.733,85.667,118.6]
[1646660586795,47.26967002,85.72,85.668,6.25]
[1646660586995,39.31324103,85.707,85.664,6.0]
[1646660587193,39.31324103,85.707,85.65,14.08]
[1646660587396,9.02,85.759,85.665,0.07248497]
[1646660587595,6.25,85.758,85.665,0.07248497]
[1646660587894,6.25,85.757,85.665,0.07248497]
[1646660588092,6.0,85.756,85.665,0.07248497]
[1646660588293,6.0,85.76,85.645,0.03]
[1646660588294,123.55049381,85.704,85.645,0.03]